bitfinex-derivatives/quotes_BTCF0:USTF0_20250209
["timestamp","ask_amount","ask_price","bid_price","bid_amount"]
[1739129971894,0.19159068,96008.0,96007.0,0.2082868]
[1739129972101,0.20059068,96008.0,96007.0,0.2082868]
[1739129972698,0.19159068,96008.0,96007.0,0.2082868]
[1739129972898,0.20059068,96008.0,96007.0,0.2102868]
[1739129973100,0.018,96008.0,96007.0,0.2102868]
[1739129979192,0.018,96008.0,96007.0,0.5710868]
[1739129979610,0.018,96008.0,96007.0,0.6402468]
[1739129981107,0.009,96008.0,96007.0,0.6392468]
[1739129981611,0.018,96008.0,96007.0,0.6402468]
[1739129991417,0.018,96008.0,96007.0,0.5710868]
[1739130005332,0.018,96008.0,96007.0,0.002]
[1739130005540,0.8978,96008.0,95999.0,0.2493823]
[1739130005830,0.3608,96000.0,95999.0,0.2493823]
[1739130006227,0.569102,96000.0,95999.0,0.2493823]
[1739130006923,0.569102,96000.0,95999.0,0.001]
[1739130007119,0.208328,95988.0,95987.0,0.00015632]
[1739130008323,0.211328,95988.0,95987.0,0.00015632]
[1739130008529,0.214328,95988.0,95987.0,0.00015632]
[1739130009031,0.215328,95988.0,95987.0,0.00015632]
[1739130009932,0.212328,95988.0,95987.0,0.00015632]
[1739130010130,0.216328,95988.0,95987.0,0.00015632]
[1739130011835,0.008,95988.0,95987.0,0.00015632]
[1739130012136,0.007,95988.0,95987.0,0.00015632]
[1739130012934,0.003,95988.0,95987.0,0.00015632]
[1739130013539,0.219,95999.0,95987.0,0.00015632]
[1739130013733,0.219,95999.0,95989.0,0.08203948]
[1739130014643,0.222,95999.0,95989.0,0.08203948]
[1739130014935,0.228,95999.0,95989.0,0.08303948]
[1739130015330,0.228,95999.0,95995.0,0.2083118]
[1739130015527,0.009,95999.0,95995.0,0.2083118]
[1739130016637,0.003,95999.0,95989.0,0.08203948]
[1739130016838,0.006,95999.0,95996.0,0.20831]
[1739130017033,0.009,95999.0,95996.0,0.20831]
[1739130017232,0.009,95999.0,95997.0,0.2083078]
[1739130017740,0.003,95999.0,95989.0,0.08203948]
[1739130017942,0.009,95999.0,95998.0,0.2083044]
[1739130019143,0.006,95999.0,95998.0,0.2083044]
[1739130019344,0.009,95999.0,95998.0,0.2083044]
[1739130019941,0.003,95999.0,95998.0,0.2083044]
[1739130020134,0.009,95999.0,95998.0,0.2093044]
[1739130021852,0.3608,96005.0,95998.0,0.001]
[1739130022350,0.2083028,96000.0,95999.0,0.2083005]
[1739130023746,0.2143028,96000.0,95999.0,0.2093005]
[1739130024047,0.2183028,96000.0,95999.0,0.2093005]
[1739130026137,0.2183028,96000.0,95999.0,0.001]
[1739130027346,0.2183028,96000.0,95999.0,0.2093005]
[1739130033552,0.01,96000.0,95999.0,0.2093005]
[1739130041353,0.218302,96000.0,95999.0,0.2093005]
[1739130052865,0.26895197,96000.0,95999.0,0.2093005]
[1739130056260,0.218302,96000.0,95999.0,0.2093005]
[1739130061570,0.218302,96000.0,95999.0,0.001]
[1739130064383,0.26895484,96000.0,95999.0,0.001]
[1739130071369,0.218302,96000.0,95999.0,0.001]
[1739130072077,0.579102,96000.0,95999.0,0.001]
[1739130072265,0.579102,96000.0,95999.0,0.00013868]
[1739130074068,0.218302,96000.0,95999.0,0.00013868]
[1739130076780,0.218302,96000.0,95999.0,1e-08]
[1739130077082,0.26895592,96000.0,95999.0,1e-08]
[1739130085990,0.62975592,96000.0,95999.0,1e-08]
[1739130086779,0.84875592,96000.0,95999.0,1e-08]
[1739130089983,0.98918811,96000.0,95999.0,1e-08]
[1739130093395,0.84875592,96000.0,95999.0,1e-08]
[1739130098391,0.208328,95988.0,95987.0,0.00015632]
[1739130098590,0.569128,95988.0,95987.0,0.00015632]
[1739130099487,0.569128,95988.0,95987.0,0.00215632]
[1739130100899,0.570128,95988.0,95987.0,0.00215632]
[1739130102100,0.2083627,95972.0,95971.0,0.00156287]
[1739130103102,0.2083627,95972.0,95971.0,0.01056287]
[1739130103407,0.2093627,95972.0,95971.0,0.01056287]
[1739130104895,0.2093627,95972.0,95971.0,0.01556287]
[1739130106706,0.26001662,95972.0,95971.0,0.01556287]
[1739130109096,0.26001662,95972.0,95971.0,0.014]
[1739130109291,0.2083823,95963.0,95962.0,0.00015632]
[1739130110898,0.2113823,95963.0,95962.0,0.00015632]
[1739130111098,0.2113823,95963.0,95962.0,0.00115632]
[1739130111594,0.2083823,95963.0,95962.0,0.00015632]
[1739130111801,0.2133823,95963.0,95962.0,0.00015632]
[1739130120203,0.5741823,95963.0,95962.0,0.00015632]
[1739130122817,0.005,95963.0,95962.0,0.20854072]
[1739130123314,0.005,95963.0,95962.0,0.56934072]
[1739130125306,0.005,95963.0,95962.0,0.20854072]
[1739130125511,0.005,95963.0,95962.0,0.56934072]
[1739130135317,0.005,95963.0,95962.0,0.00015632]
[1739130139425,0.005,95963.0,95962.0,9.87e-06]
[1739130149635,0.2133823,95963.0,95962.0,9.87e-06]
[1739130150633,0.5741823,95963.0,95962.0,9.87e-06]
[1739130152131,0.5701823,95963.0,95962.0,0.00100987]
[1739130153930,0.5701823,95963.0,95962.0,0.00500987]
[1739130154132,0.62085839,95963.0,95962.0,0.00500987]
[1739130160540,0.5701823,95963.0,95962.0,0.00500987]
[1739130165039,0.001,95963.0,95962.0,0.00500987]
[1739130165238,0.001,95963.0,95962.0,0.21339427]
[1739130166151,0.001,95963.0,95962.0,0.22285975]
[1739130168544,0.3608,95975.0,95962.0,0.01447535]
[1739130168747,0.18614189,95982.0,95969.0,0.3608]
[1739130169048,0.18614189,95982.0,95980.0,0.2083454]
[1739130170238,0.2083399,95983.0,95980.0,0.2083454]
[1739130170640,0.2083422,95982.0,95980.0,0.2083454]
[1739130170843,0.00315632,95981.0,95980.0,0.2083454]
[1739130195776,0.2082925,96005.0,96002.0,0.2082963]
[1739130197066,0.2262925,96005.0,96003.0,0.2082949]
[1739130198071,0.20529166,96005.0,96003.0,0.2082949]
[1739130200073,0.20529166,96005.0,96003.0,0.2092949]
[1739130202074,0.2082933,96004.0,96003.0,0.2092949]
[1739130202880,0.2082933,96004.0,96003.0,0.001]
[1739130203264,0.009,96004.0,95994.0,0.00015632]
[1739130203567,0.2083128,95995.0,95994.0,0.00015632]
[1739130204875,0.2083128,95995.0,95994.0,0.00115632]
[1739130206271,0.2223128,95995.0,95994.0,0.00115632]
[1739130206482,0.4212943,95995.0,95994.0,0.00115632]
[1739130207568,0.4212943,95995.0,95987.0,0.2083301]
[1739130207969,0.3608,95992.0,95987.0,0.2083301]
[1739130208369,0.5691198,95992.0,95987.0,0.2083301]
[1739130209479,0.5741198,95992.0,95987.0,0.2083301]
[1739130210180,0.5741198,95992.0,95987.0,0.2093301]
[1739130210481,0.2083215,95991.0,95987.0,0.2093301]
[1739130210670,0.2083215,95991.0,95987.0,0.2083301]
[1739130210871,0.2083215,95991.0,95987.0,0.2093301]
[1739130211674,0.2123215,95991.0,95987.0,0.2093301]
[1739130212080,0.05065212,95990.0,95987.0,0.2093301]
[1739130212472,0.05065212,95990.0,95987.0,0.2083301]
[1739130212673,0.2083258,95989.0,95987.0,0.2093301]
[1739130213881,0.2133258,95989.0,95987.0,0.2093301]
[1739130214979,0.2163258,95989.0,95987.0,0.2093301]
[1739130217983,0.2163258,95989.0,95987.0,0.001]
[1739130217984,0.208328,95988.0,95987.0,0.001]
[1739130219187,0.003,95989.0,95978.0,0.08203948]
[1739130219381,0.2083475,95979.0,95976.0,0.2083533]
[1739130220379,0.2083475,95979.0,95978.0,0.001]
[1739130221589,0.3608,95984.0,95978.0,0.001]
[1739130221783,0.2083389,95983.0,95978.0,0.2083492]
[1739130221984,0.002,95979.0,95978.0,0.2083492]
[1739130222388,0.2083389,95983.0,95978.0,0.2083492]
[1739130222584,0.002,95979.0,95978.0,0.2083492]
[1739130223688,0.2113389,95983.0,95978.0,0.2083492]
[1739130224387,0.2123389,95983.0,95978.0,0.2083492]
[1739130224779,0.004,95983.0,95974.0,0.00987815]
[1739130224980,0.004,95983.0,95979.0,0.2083467]
[1739130225487,0.001,95983.0,95979.0,0.2083467]
[1739130226086,0.004,95983.0,95979.0,0.2083467]
[1739130226693,0.004,95983.0,95973.0,0.08203948]
[1739130226894,0.004,95983.0,95982.0,0.208341]
[1739130230091,0.004,95983.0,95982.0,0.637981]
[1739130230294,1e-08,95993.0,95992.0,0.2083193]
[1739130230495,1e-08,95993.0,95992.0,0.5691193]
[1739130230690,0.18621169,95993.0,95992.0,0.5691193]
[1739130231486,0.18721169,95993.0,95992.0,0.5691193]
[1739130231686,0.19021169,95993.0,95992.0,0.5691193]
[1739130232294,0.19021168,95993.0,95992.0,0.5691193]
[1739130232493,0.21653294,96004.0,96002.0,0.2082976]
[1739130233799,0.3618,96003.0,96002.0,0.2102976]
[1739130234793,0.3608,96003.0,96002.0,0.2092976]
[1739130235189,0.3608,96003.0,96002.0,0.2132976]
[1739130235393,0.3608,96003.0,96002.0,0.22312425]
[1739130235693,0.00015632,96012.0,96011.0,0.2082781]
[1739130236496,0.2082332,96032.0,96025.0,0.2082464]
[1739130236699,0.2082364,96031.0,96025.0,0.2082464]
[1739130237188,0.2082364,96031.0,96022.0,0.3608]
[1739130237189,0.2082364,96031.0,96028.0,0.2082404]
[1739130237992,0.003,96031.0,96028.0,0.2082408]
[1739130238488,0.003,96031.0,96030.0,0.2082369]
[1739130238693,0.008,96031.0,96030.0,0.2082369]
[1739130239690,0.003,96031.0,96030.0,0.2082369]
[1739130239891,0.005,96031.0,96030.0,0.2082369]
[1739130240188,0.009,96031.0,96030.0,0.5690369]
[1739130240812,0.005,96031.0,96030.0,0.5690369]
[1739130241001,0.009,96031.0,96030.0,0.5690369]
[1739130247807,0.009,96031.0,96030.0,0.35028138]
[1739130248202,0.009,96031.0,96030.0,0.55851828]
[1739130250211,0.009,96031.0,96030.0,0.4022654]
[1739130255829,0.004,96031.0,96030.0,0.4052654]
[1739130256530,0.001,96031.0,96030.0,0.4072654]
[1739130257130,0.00015623,96039.0,96030.0,0.1990285]
[1739130257433,0.00015623,96039.0,96038.0,0.5690195]
[1739130257633,0.00015623,96039.0,96038.0,0.6380595]
[1739130260428,0.00015623,96039.0,96038.0,0.6410595]
[1739130263127,0.00015623,96039.0,96038.0,1.0018595]
[1739130266634,0.00015623,96039.0,96038.0,1.01168063]
[1739130266832,0.00015623,96039.0,96038.0,0.3638]
[1739130267539,0.00015623,96039.0,96038.0,0.5720195]
[1739130268433,0.00115623,96039.0,96038.0,0.5720195]
[1739130268830,0.00115623,96039.0,96038.0,0.5690195]
[1739130269032,0.00115623,96039.0,96038.0,0.5700195]
[1739130269935,0.00115623,96039.0,96038.0,0.3618]
[1739130271634,0.00115623,96039.0,96038.0,0.001]
[1739130272029,0.00115623,96039.0,96029.0,0.33313365]
[1739130272237,0.00115623,96039.0,96038.0,0.001]
[1739130272750,0.36195623,96039.0,96038.0,0.001]
[1739130272949,0.208224,96036.0,96029.0,0.2082386]
[1739130273949,0.36195623,96039.0,96029.0,0.2082386]
[1739130274845,0.00115623,96039.0,96029.0,0.2082386]
[1739130275048,0.00115623,96039.0,96032.0,0.3608]
[1739130275240,0.00415623,96039.0,96032.0,0.3608]
[1739130275744,0.19826744,96039.0,96032.0,0.3608]
[1739130275946,0.40748514,96039.0,96032.0,0.3608]
[1739130276742,0.40748514,96039.0,96032.0,0.3618]
[1739130278447,0.40648514,96039.0,96032.0,0.3618]
[1739130278646,0.41248514,96039.0,96032.0,0.3608]
[1739130279355,0.18609265,96037.0,96032.0,0.3608]
[1739130281754,0.18909265,96037.0,96032.0,0.3608]
[1739130282847,0.003,96037.0,96032.0,0.3608]
[1739130283845,0.003,96037.0,96033.0,0.2082304]
[1739130284041,0.003,96037.0,96032.0,0.3608]
[1739130284245,0.003,96037.0,96035.0,0.2082259]
[1739130291158,0.002,96037.0,96035.0,0.5690259]
[1739130292464,0.00015623,96039.0,96038.0,0.2082195]
[1739130294066,0.00315623,96039.0,96038.0,0.2082195]
[1739130297970,0.195294,96039.0,96038.0,0.2082195]
[1739130298666,0.195294,96039.0,96035.0,0.3608]
[1739130299260,0.195294,96039.0,96038.0,0.2082195]
[1739130300066,0.192294,96039.0,96038.0,0.2082195]
[1739130300267,0.193294,96039.0,96038.0,0.2082195]
[1739130300573,0.193294,96039.0,96038.0,0.2092195]
[1739130300775,0.05178467,96039.0,96038.0,0.2092195]
[1739130304269,0.00115623,96039.0,96038.0,0.2092195]
[1739130304770,0.00115623,96039.0,96038.0,0.21906465]
[1739130312881,0.20937363,96039.0,96038.0,0.01084515]
[1739130313083,0.00115623,96039.0,96038.0,0.21906465]
[1739130314373,0.00115623,96039.0,96038.0,0.001]
[1739130314573,0.20937363,96039.0,96038.0,0.001]
[1739130315581,0.20937363,96039.0,96029.0,0.18701388]
[1739130315582,0.22015623,96039.0,96029.0,0.18701388]
[1739130315771,0.2082369,96030.0,96029.0,0.18701388]
[1739130316780,0.2082369,96030.0,96029.0,0.18801388]
[1739130317284,0.4272369,96030.0,96029.0,0.18801388]
[1739130317473,0.4974769,96030.0,96029.0,0.18701388]
[1739130317677,0.4974769,96030.0,96029.0,0.19001388]
[1739130318076,0.2082499,96024.0,96023.0,0.24842099]
[1739130318278,0.5798,96024.0,96015.0,0.31229977]
[1739130318482,0.5690672,96016.0,96015.0,0.31229977]
[1739130319688,0.5690672,96016.0,96015.0,0.31729977]
[1739130320191,0.208279,96011.0,96006.0,0.00015623]
[1739130320485,0.2082868,96007.0,96006.0,0.00015623]
[1739130320693,0.2083,96001.0,95993.0,0.3608]
[1739130320988,0.3608,95998.0,95984.0,0.3608]
[1739130322178,0.219,95997.0,95982.0,0.31229977]
[1739130322381,0.2083382,95984.0,95982.0,0.31229977]
[1739130322981,0.2083382,95984.0,95972.0,0.3608]
[1739130324794,0.2083382,95984.0,95982.0,0.004]
[1739130325294,0.2083382,95984.0,95972.0,0.3608]
[1739130325993,0.00015623,95993.0,95972.0,0.3608]
[1739130326394,0.2083229,95991.0,95984.0,0.3608]
[1739130326595,0.2083229,95991.0,95972.0,0.3608]
[1739130327387,0.01018352,95993.0,95972.0,0.3608]
[1739130327592,0.2083261,95989.0,95972.0,0.3608]
[1739130329095,0.2103261,95989.0,95972.0,0.3608]
[1739130331099,0.2103261,95989.0,95983.0,0.3608]
[1739130331299,0.2103261,95989.0,95973.0,0.2083603]
[1739130331801,0.2103261,95989.0,95981.0,0.3608]
[1739130332585,0.2103261,95989.0,95981.0,0.1419216]
[1739130332586,0.2083261,95989.0,95981.0,0.1419216]
[1739130332798,0.2103261,95989.0,95981.0,0.1419216]
[1739130334302,0.2103261,95989.0,95980.0,0.19393136]
[1739130338301,0.002,95989.0,95979.0,0.12511261]
[1739130338503,0.002,95989.0,95987.0,0.2083294]
[1739130339606,0.002,95989.0,95988.0,0.07476]
[1739130339806,0.3608,96011.0,95988.0,0.43556]
[1739130340010,0.3608,96011.0,96000.0,0.12511261]
[1739130340603,0.3608,96011.0,96003.0,0.2082936]
[1739130340803,0.3608,96011.0,96000.0,0.12511261]
[1739130341009,0.18581933,96012.0,96011.0,0.2082781]
[1739130342113,0.18681933,96012.0,96011.0,0.2082781]
[1739130343011,0.001,96012.0,96011.0,0.2082781]
[1739130343210,0.00015623,96017.0,96016.0,0.2082672]
[1739130343910,0.00015623,96017.0,96011.0,0.3608]
[1739130344213,0.00015623,96017.0,96013.0,0.2082727]
[1739130344412,0.00015623,96017.0,96014.0,0.2082705]
[1739130344607,0.00015623,96017.0,96015.0,0.2082681]
[1739130345921,0.00015623,96017.0,96015.0,0.2122681]
[1739130346721,0.00115623,96017.0,96015.0,0.2122681]
[1739130349317,0.00115623,96017.0,96015.0,0.004]
[1739130350018,0.3608,96016.0,95997.0,0.07483623]
[1739130350216,0.2083048,95999.0,95997.0,0.00015623]
[1739130352726,0.2083048,95999.0,95997.0,0.00215623]
[1739130353223,0.2093048,95999.0,95997.0,0.00215623]
[1739130354325,0.4283048,95999.0,95997.0,0.00215623]
[1739130357522,0.4283048,95999.0,95997.0,1e-08]
[1739130363821,0.22,95999.0,95973.0,0.2083602]
[1739130364125,0.2083581,95975.0,95973.0,0.2083602]
[1739130365024,0.2083581,95975.0,95974.0,0.2083584]
[1739130365822,0.2093581,95975.0,95974.0,0.2083584]
[1739130366219,0.2083581,95975.0,95974.0,0.2083584]
[1739130366422,0.2083581,95975.0,95974.0,0.005]
[1739130366624,0.4273581,95975.0,95974.0,0.005]
[1739130366926,0.0520904,95973.0,95954.0,0.2084008]
[1739130367133,0.2084024,95954.0,95949.0,0.2084116]
[1739130367426,0.3608,95964.0,95949.0,0.2084116]
[1739130367427,0.3608,95964.0,95950.0,0.12511261]
[1739130367627,0.2084041,95953.0,95950.0,0.12511261]
[1739130368732,0.001,95953.0,95950.0,0.13111261]
[1739130369123,0.001,95953.0,95950.0,0.2144103]
[1739130371932,0.001,95953.0,95952.0,0.2084062]
[1739130372231,0.2083646,95972.0,95964.0,0.2083796]
[1739130372429,0.00015623,95973.0,95969.0,0.2083676]
[1739130372822,0.00015623,95973.0,95966.0,0.3608]
[1739130373027,0.00015623,95973.0,95972.0,0.2083627]
[1739130375750,0.00015623,95973.0,95972.0,0.5123627]
[1739130375923,0.219,95984.0,95983.0,0.2083388]
[1739130376130,0.219,95984.0,95983.0,0.2826988]
[1739130376741,0.219,95984.0,95983.0,0.07436]
[1739130377443,0.22,95984.0,95983.0,0.07436]
[1739130378141,0.001,95984.0,95983.0,0.07436]
[1739130379136,0.3618,95984.0,95976.0,0.07448]
[1739130380432,0.3608,95984.0,95976.0,0.07448]
[1739130380640,0.3618,95984.0,95976.0,0.07448]
[1739130380840,0.3618,95984.0,95976.0,0.2828326]
[1739130381341,0.001,95984.0,95976.0,0.2828326]
[1739130381639,0.3608,95992.0,95976.0,0.07448]
[1739130381840,0.3608,95992.0,95983.0,0.2083367]
[1739130381841,0.001,95984.0,95983.0,0.2083367]
[1739130384140,0.001,95984.0,95983.0,0.2083388]
[1739130386046,0.00015631,95993.0,95983.0,0.3608]
[1739130386236,0.00015631,95993.0,95992.0,0.5691193]
[1739130386436,0.18581933,95997.0,95992.0,0.43524]
[1739130386635,0.18581933,95997.0,95996.0,0.2083106]
[1739130387644,0.18581933,95997.0,95996.0,0.21847574]
[1739130387832,0.19081933,95997.0,95996.0,0.21947574]
[1739130389140,0.19381933,95997.0,95996.0,0.21947574]
[1739130390541,0.008,95997.0,95996.0,0.21947574]
[1739130394245,0.008,95997.0,95996.0,0.58027574]
[1739130394956,0.008,95997.0,95996.0,0.94107574]
[1739130400451,0.00015631,96006.0,95996.0,0.73276514]
[1739130400761,0.219,96023.0,96022.0,0.2082542]
[1739130400955,0.3608,96024.0,96022.0,0.2082542]
[1739130401953,0.3608,96024.0,96016.0,0.2082659]
[1739130402858,0.3608,96024.0,96022.0,0.001]
[1739130403062,0.009,96023.0,96022.0,0.001]
[1739130403350,0.009,96023.0,96016.0,0.2082659]
[1739130403556,0.3788,96024.0,96016.0,0.2092659]
[1739130403959,0.3698,96024.0,96016.0,0.2082659]
[1739130404150,0.3678,96024.0,96022.0,0.001]
[1739130404350,0.005,96023.0,96022.0,0.002]
[1739130404952,0.57693051,96024.0,96022.0,0.001]
[1739130405155,0.5810505,96024.0,96022.0,0.001]
[1739130405666,0.2082578,96021.0,96016.0,0.002]
[1739130405868,0.37372,96024.0,96016.0,0.002]
[1739130406046,0.3728,96024.0,96016.0,0.002]
[1739130406252,0.2082637,96018.0,96016.0,0.001]
[1739130406561,0.58515287,96024.0,96016.0,0.001]
[1739130406766,0.005,96023.0,96013.0,0.00015621]
[1739130407262,0.2082542,96022.0,96013.0,0.00015621]
[1739130407453,0.006,96021.0,96016.0,0.001]
[1739130407656,0.003,96018.0,96016.0,0.001]
[1739130408257,0.2082594,96020.0,96016.0,0.001]
[1739130408763,0.2082594,96020.0,96016.0,0.0008492]
[1739130408966,0.2082594,96020.0,96013.0,0.00115621]
[1739130409259,0.2082656,96017.0,96013.0,0.00115621]
[1739130409465,0.2082656,96017.0,96013.0,0.00015621]
[1739130409665,0.2082656,96017.0,96016.0,0.001]
[1739130410163,0.2082656,96017.0,96013.0,0.00115621]
[1739130410551,0.5690656,96017.0,96013.0,0.00115621]
[1739130410757,0.5710656,96017.0,96013.0,0.00115621]
[1739130411856,0.5710656,96017.0,96013.0,0.00015621]
[1739130412056,0.5760656,96017.0,96013.0,0.00015621]
[1739130413373,0.05063967,96016.0,96013.0,0.00015621]
[1739130414667,0.05263967,96016.0,96013.0,0.00015621]
[1739130415169,0.05663967,96016.0,96013.0,0.00015621]
[1739130417869,0.006,96016.0,96013.0,0.00015621]
[1739130419364,0.2142674,96016.0,96013.0,0.00015621]
[1739130420771,0.2082715,96014.0,96013.0,0.00015621]
[1739130420960,0.2082715,96014.0,95983.0,0.3608]
[1739130420961,0.2083089,95997.0,95991.0,0.07324]
[1739130421670,0.2083089,95997.0,95991.0,0.2815609]
[1739130422165,0.2083114,95996.0,95991.0,0.07324]
[1739130422371,0.2083132,95995.0,95991.0,0.07324]
[1739130422861,0.3608,95998.0,95991.0,0.07324]
[1739130423258,0.001,95997.0,95991.0,0.07324]
[1739130423470,0.001,95997.0,95990.0,0.31012153]
[1739130424469,0.001,95997.0,95988.0,0.01006056]
[1739130424665,0.001,95997.0,95987.0,0.2083298]
[1739130425171,0.2093089,95997.0,95987.0,0.2083298]
[1739130425471,0.2083089,95997.0,95987.0,0.2083298]
[1739130425659,0.2083089,95997.0,95991.0,0.002]
[1739130425863,0.2093089,95997.0,95991.0,0.002]
[1739130426367,0.2093089,95997.0,95987.0,0.2083298]
[1739130426574,0.2093089,95997.0,95987.0,0.2103298]
[1739130427270,0.2093089,95997.0,95991.0,0.002]
[1739130427968,0.208316,95994.0,95991.0,0.002]
[1739130429571,0.208316,95994.0,95987.0,0.002]
[1739130432067,0.208316,95994.0,95986.0,0.21833729]
[1739130432267,0.208316,95994.0,95991.0,0.002]
[1739130432981,0.2083301,95988.0,95987.0,0.002]
[1739130433685,0.2083157,95994.0,95986.0,0.01000519]
[1739130433873,0.2083157,95994.0,95991.0,0.002]
[1739130434677,0.2083193,95992.0,95991.0,0.002]
[1739130435381,0.2083193,95992.0,95987.0,0.002]
[1739130435585,0.001,95988.0,95987.0,0.004]
[1739130435775,0.001,95988.0,95987.0,0.002]
[1739130436282,0.3608,95998.0,95991.0,0.002]
[1739130436283,0.001,95992.0,95991.0,0.002]
[1739130436481,0.001,95992.0,95991.0,0.003]
[1739130436881,0.001,95992.0,95991.0,0.002]
[1739130437184,0.00015621,96004.0,95995.0,0.2083116]
[1739130439084,0.00415621,96004.0,95995.0,0.2083116]
[1739130439585,0.00515621,96004.0,96001.0,0.208299]
[1739130439771,0.00515621,96004.0,96003.0,0.2082954]
[1739130440180,0.00415621,96004.0,96003.0,0.2082954]
[1739130440373,0.00515621,96004.0,96003.0,0.2082954]
[1739130440575,0.00515621,96004.0,96003.0,0.5690954]
[1739130440873,0.00215621,96004.0,96003.0,0.5690954]
[1739130441791,0.00088001,96027.0,96003.0,0.3628]
[1739130442083,0.3608,96029.0,96024.0,0.2082498]
[1739130442282,0.3608,96029.0,96024.0,0.2823298]
[1739130442682,0.18641695,96029.0,96024.0,0.07408]
[1739130442875,0.18641695,96029.0,96027.0,0.3608]
[1739130443585,0.18641695,96029.0,96028.0,0.2082412]
[1739130443981,0.18641695,96029.0,96028.0,0.5690412]
[1739130445285,0.19541695,96029.0,96028.0,0.5690412]
[1739130445786,0.19541695,96029.0,96028.0,0.5700412]
[1739130445972,0.017,96029.0,96028.0,0.5700412]
[1739130446578,0.009,96029.0,96028.0,0.5700412]
[1739130446774,0.017,96029.0,96028.0,0.5700412]
[1739130446984,0.017,96029.0,96028.0,0.2092412]
[1739130447175,0.017,96029.0,96028.0,0.58012445]
[1739130458501,0.00015621,96036.0,96035.0,0.208226]
[1739130458993,0.00015621,96036.0,96028.0,0.37188325]
[1739130458994,0.219,96056.0,96046.0,0.12511261]
[1739130459590,0.2081773,96058.0,96046.0,0.12511261]
[1739130459793,0.2081773,96058.0,96048.0,0.2081977]
[1739130461496,0.00015621,96062.0,96046.0,0.12511261]
[1739130461795,0.2081839,96055.0,96042.0,0.28188561]
[1739130462295,0.2081839,96055.0,96048.0,0.002]
[1739130462694,0.2081839,96055.0,96048.0,0.001]
[1739130462887,0.2081839,96055.0,96046.0,0.001]
[1739130463088,0.2161839,96055.0,96046.0,0.001]
[1739130463291,0.2191839,96055.0,96043.0,0.2082083]
[1739130464602,0.2111839,96055.0,96043.0,0.2082083]
[1739130464789,0.2161839,96055.0,96048.0,0.002]
[1739130465392,0.2081839,96055.0,96044.0,0.2082056]
[1739130465592,0.2151839,96055.0,96044.0,0.2082056]
[1739130466093,0.2151839,96055.0,96048.0,0.001]
[1739130466399,0.2151839,96055.0,96048.0,0.002]
[1739130467494,0.007,96055.0,96048.0,0.002]
[1739130467802,0.007,96055.0,96048.0,0.001]
[1739130467803,0.008,96055.0,96048.0,0.001]
[1739130467998,0.2081957,96049.0,96048.0,0.001]
[1739130468200,0.2081957,96049.0,96044.0,0.002]
[1739130468700,0.2081957,96049.0,96048.0,0.001]
[1739130468900,0.2081957,96049.0,96048.0,0.002]
[1739130469397,0.2081957,96049.0,96048.0,0.001]
[1739130469589,0.2121957,96049.0,96048.0,0.001]
[1739130469998,0.2081957,96049.0,96048.0,0.001]
[1739130470196,0.2121957,96049.0,96048.0,0.002]
[1739130470706,0.2171957,96049.0,96048.0,0.001]
[1739130471408,0.2171957,96049.0,96048.0,0.002]
[1739130476196,0.4361957,96049.0,96048.0,0.002]
[1739130477698,0.4868215,96049.0,96048.0,0.002]
[1739130477904,0.2082337,96032.0,96030.0,0.01032269]
[1739130478104,0.2082337,96032.0,96029.0,0.2082389]
[1739130478893,0.2082337,96032.0,96025.0,0.01031458]
[1739130479098,0.2082337,96032.0,96030.0,0.002]
[1739130479295,0.2092337,96032.0,96030.0,0.002]
[1739130480302,0.2102337,96032.0,96030.0,0.002]
[1739130480701,0.2102337,96032.0,96025.0,0.01035917]
[1739130480702,0.2102337,96032.0,96025.0,0.01235917]
[1739130481411,0.2102337,96032.0,96025.0,0.01035917]
[1739130481610,0.2102337,96032.0,96030.0,0.001]
[1739130481907,0.001,96032.0,96030.0,0.001]
[1739130482214,0.001,96032.0,96028.0,0.3608]
[1739130482402,0.36168001,96038.0,96028.0,0.5690407]
[1739130482605,0.002,96032.0,96028.0,0.69415331]
[1739130482806,0.002,96032.0,96028.0,0.5690407]
[1739130483006,0.3608,96038.0,96028.0,0.5690407]
[1739130483201,0.001,96032.0,96028.0,0.3608]
[1739130483408,0.001,96032.0,96029.0,0.208237]
[1739130483613,0.001,96032.0,96030.0,0.2082368]
[1739130483910,0.001,96032.0,96030.0,0.2102368]
[1739130484811,0.001,96032.0,96029.0,0.002]
[1739130485404,0.2082239,96036.0,96028.0,0.5696009]
[1739130485605,0.2082239,96036.0,96030.0,0.002]
[1739130486002,0.001,96032.0,96030.0,0.002]
[1739130486399,0.001,96032.0,96031.0,0.3608]
[1739130486600,0.002,96036.0,96031.0,0.3608]
[1739130487013,0.2082219,96037.0,96031.0,0.3608]
[1739130487215,0.001,96032.0,96031.0,0.3608]
[1739130488813,0.002,96036.0,96031.0,0.3628]
[1739130489315,0.001,96032.0,96031.0,0.3628]
[1739130490212,0.2082219,96037.0,96031.0,0.3628]
[1739130490412,0.002,96036.0,96031.0,0.3628]
[1739130490805,0.2082282,96034.0,96031.0,0.3628]
[1739130491010,0.002,96036.0,96031.0,0.3628]
[1739130491412,0.002,96036.0,96031.0,0.3608]
[1739130491613,0.2102257,96036.0,96031.0,0.3608]
[1739130491810,0.2082257,96036.0,96031.0,0.3608]
[1739130492119,0.001,96032.0,96031.0,0.3608]
[1739130493018,0.2102257,96036.0,96031.0,0.3608]
[1739130493917,0.001,96032.0,96031.0,0.3608]
[1739130494320,0.2092325,96032.0,96031.0,0.3628]
[1739130495008,0.001,96032.0,96031.0,0.3628]
[1739130496121,0.2102249,96036.0,96031.0,0.3628]
[1739130496827,0.001,96032.0,96031.0,0.3628]
[1739130497619,0.001,96032.0,96031.0,0.3608]
[1739130498323,0.002,96036.0,96032.0,0.2082325]
[1739130498723,0.00015621,96040.0,96032.0,0.2082325]
[1739130499427,0.002,96036.0,96033.0,0.20823]
[1739130500227,0.00415621,96040.0,96033.0,0.20823]
[1739130500929,0.00415621,96040.0,96029.0,0.2082387]
[1739130501223,0.2082254,96036.0,96029.0,0.2082387]
[1739130501925,0.2102254,96036.0,96029.0,0.2082387]
[1739130502223,0.2082254,96036.0,96029.0,0.2082387]